Cogmind - Beta 16 @@@ ROGUE MODE // 2025.12.14 @ 20:23:13 Player: Kathisto Result: Self-destructed Performance ------------- Evolutions (6) 3000 Regions Visited (19) 3800 Robots Destroyed (237) 1185 Value Destroyed (9735) 9735 Prototype IDs (16) 320 Alien Tech Used (2) 400 Bonus (3432) 3432 TOTAL SCORE: 21872 Bonus ------- High Alert Combat Kills 285 Follower Combat Kills 1165 Entered DSFs 500 Acquired ECA 300 Met Zhirov 300 Built Enhanced Grunts 300 Met R17 at Cetus 500 Read Decrypted Archives 300 Friendly Fire -218 Cogmind --------- Core Integrity 757/1150 Matter 300/300 Energy 100/100 System Corruption 2% Temperature Cool (0) Movement Core (50) Location -3/Proximity Caves Parts ------- > --- POWER (2) -------- (None) > --- PROPULSION (6) --- (None) > --- UTILITY (4) ------ (None) > --- WEAPON (7) ------- (None) > --- INVENTORY (5) ---- Advanced Heat Sink Coolant Injector Makeshift Terrain Scanner Improved Transmission Jammer Improved Point Defense System Peak State ------------ > --- POWER ------------ Reinforced Deuterium Engine Light Antimatter Reactor > --- PROPULSION ------- Improved Treads Improved Treads Medium Treads Armored Medium Treads Armored Huge Wheel > --- UTILITY ---------- Advanced Cooling System Huge Storage Unit Improved Salvage Targeting Computer Core Analyzer > --- WEAPON ----------- KE Penetrator KE Penetrator KE Penetrator Railgun Advanced KE Penetrator Advanced KE Penetrator Advanced KE Penetrator > --- INVENTORY -------- Neutrino Core Light Treads Light Treads Improved Treads Centrium Heavy Treads Advanced Heat Sink Advanced Heat Sink Coolant Injector Advanced Coolant Injector High-capacity Matter Pod Makeshift Terrain Scanner Encrypted Comm Array Precision Matter Filter Improved Transmission Jammer Improved Medium Armor Plating Graphene Brace Improved Force Field Makeshift Hacking Suite High-powered Tractor Beam Cooled Particle Cannon Heavy Assault Rifle Hypervelocity Gauss Rifle Hypervelocity Gauss Rifle KE Penetrator [Rating: 109] Favorites ----------- Power Reinforced Deuterium Engine Engine Reinforced Deuterium Engine Power Core Neutrino Core Reactor Light Antimatter Reactor Propulsion Light Treads Treads Light Treads Wheel Armored Huge Wheel Utility Huge Storage Unit Device Improved Heat Sink Storage Huge Storage Unit Processor Improved Salvage Targeting Computer Protection Improved Medium Armor Plating Weapon KE Penetrator Energy Gun Gatling Laser Energy Cannon Cooled Particle Cannon Ballistic Gun KE Penetrator Launcher Rocket Launcher Build | -11 -10 -9 -8 -7 -7 -7 -6 -6 -6 -5 -5 -5 -5 -5 -4 -4 -4 -4 -3 ------- Run | Yrd Mat Mat Mat Fac Low Dat Pro Fac DSF Fac Ext Cet Arc Hub Fac Upp Upp Zhi Pro Slots Evolved 12 | . . 2 2 2 . . . 2 . 2 . . . . 2 . . . . Power 1 | . . . . . . . . . . 1 . . . . . . . . . Propulsion 4 | . . . 1 1 . . . . . 1 . . . . 1 . . . . Utility 2 | . . . 1 1 . . . . . . . . . . . . . . . Weapon 5 | . . 2 . . . . . 2 . . . . . . 1 . . . . Parts Attached 113 | 9 1 10 17 18 . . 2 1 15 9 6 1 3 2 4 10 1 . 4 Power 9 | 1 . 1 3 . . . . . 1 2 . . . . . 1 . . . Engine 7 | 1 . 1 3 . . . . . 1 1 . . . . . . . . . Core 1 | . . . . . . . . . . 1 . . . . . . . . . Reactor 1 | . . . . . . . . . . . . . . . . 1 . . . Propulsion 32 | 2 . 2 5 7 . . . . 2 5 1 . 2 1 2 1 1 . 1 Treads 29 | 2 . 2 5 7 . . . . 1 5 1 . 1 1 2 1 . . 1 Leg . | . . . . . . . . . . . . . . . . . . . . Wheel 3 | . . . . . . . . . 1 . . . 1 . . . 1 . . Hover . | . . . . . . . . . . . . . . . . . . . . Flight . | . . . . . . . . . . . . . . . . . . . . Utility 23 | 3 1 2 3 5 . . . . 3 . . 1 . . 1 3 . . 1 Device 14 | 2 . . 2 3 . . . . 2 . . 1 . . . 3 . . 1 Storage 4 | 1 1 . 1 . . . . . . . . . . . 1 . . . . Processor 3 | . . 1 . 1 . . . . 1 . . . . . . . . . . Hackware . | . . . . . . . . . . . . . . . . . . . . Protection 2 | . . 1 . 1 . . . . . . . . . . . . . . . Artifact . | . . . . . . . . . . . . . . . . . . . . Weapon 49 | 3 . 5 6 6 . . 2 1 9 2 5 . 1 1 1 5 . . 2 Energy Gun 7 | 2 . 1 . . . . . . 4 . . . . . . . . . . Energy Cannon 1 | . . . . 1 . . . . . . . . . . . . . . . Ballistic Gun 40 | 1 . 4 6 4 . . 2 1 5 2 5 . 1 1 1 5 . . 2 Ballistic Cannon . | . . . . . . . . . . . . . . . . . . . . Launcher 1 | . . . . 1 . . . . . . . . . . . . . . . Special Weapon . | . . . . . . . . . . . . . . . . . . . . Impact Weapon . | . . . . . . . . . . . . . . . . . . . . Slashing Weapon . | . . . . . . . . . . . . . . . . . . . . Piercing Weapon . | . . . . . . . . . . . . . . . . . . . . Special Melee Weapon . | . . . . . . . . . . . . . . . . . . . . Unidentified Prototypes 7 | . . . 1 1 . . . . . . . . . . . 2 . 1 2 Corrupted Parts 1 | . . . . . . . . . . . . . . . 1 . . . . System Corruption 1 | . . . . . . . . . . . . . . . 1 . . . . Parts Lost 44 | . . 3 4 2 . . 3 . 6 1 1 . 4 . 1 4 2 . 13 Power 2 | . . 1 . . . . . . . 1 . . . . . . . . . Propulsion 12 | . . 1 . 1 . . . . 2 . . . 3 . . . 1 . 4 Utility 3 | . . 1 1 1 . . . . . . . . . . . . . . . Weapon 27 | . . . 3 . . . 3 . 4 . 1 . 1 . 1 4 1 . 9 Highest Loss Streak 7 | . . 2 1 1 . . 3 . 5 1 1 . 4 . 1 4 1 . 7 To Critical Strikes 2 | . . . . . . . . . . . . . . . 1 . 1 . . Average Backups 20 | . 4 7 19 23 24 24 23 21 21 21 23 23 22 20 23 23 22 23 17 Power . | . . . . 1 1 1 1 1 1 1 1 1 1 1 1 1 1 1 . Propulsion 5 | . 1 2 5 7 8 8 8 8 7 6 8 6 5 3 4 4 3 3 . Utility 6 | . 2 2 3 4 5 5 5 5 4 6 6 6 6 6 8 12 13 12 12 Weapon 7 | . . 2 9 10 10 10 9 7 8 8 8 9 9 9 9 5 4 5 1 Tool/Special . | . . . . . . . . . . . . . . . . . . . . Unused Backups 31 | . . . 5 4 . . . . 1 3 3 4 . . . . . 1 10 Power 2 | . . . . . . . . . . . 1 . . . . . . . 1 Propulsion 9 | . . . 2 . . . . . 1 2 . 3 . . . . . . 1 Utility 14 | . . . 2 1 . . . . . 1 1 1 . . . . . 1 7 Weapon 5 | . . . 1 3 . . . . . . 1 . . . . . . . . Tool/Special 1 | . . . . . . . . . . . . . . . . . . . 1 Average Slot Usage (%) 94 | . 100 89 99 99 100 100 100 93 93 90 93 94 93 92 93 94 93 75 89 Engine 6 | . 14 4 9 7 7 7 7 6 6 7 5 5 5 5 5 5 5 5 4 Core 1 | . . . . . . . . . . . 5 5 5 4 5 4 . . . Treads 22 | . 28 22 26 29 30 30 30 26 20 16 17 17 17 16 20 21 15 15 19 Wheel 2 | . . . . . . . . . 1 5 5 5 5 5 5 5 9 10 5 Device 6 | . 14 3 6 10 7 7 7 6 6 5 5 5 5 5 5 5 5 4 4 Storage 6 | . 14 11 9 7 7 7 7 6 6 5 5 5 5 5 5 5 5 5 4 Processor 9 | . . 4 9 7 15 15 15 13 13 11 11 11 11 11 10 10 10 10 9 Energy Gun 1 | . 14 7 . . . . . . 21 7 . . . . . . . . . Ballistic Gun 32 | . 14 33 36 29 30 30 30 33 15 27 34 35 34 33 35 36 36 18 33 Peak Build Rating 109 | 7 7 14 30 51 51 51 51 49 66 82 89 92 92 93 101 109 109 107 107 Average Rating 62 | 5 7 10 24 40 51 51 49 49 61 73 86 89 91 90 100 104 106 82 98 On Entrance 61 | . 7 7 14 28 51 51 51 47 49 62 82 89 92 91 93 101 109 106 107 Avg Prop Armor Cover (%) 13 | . . . . . . . . . 7 14 14 14 14 15 17 16 12 17 2 Naked Turns 4 | . . . . . . . . . . . . . . . . . . . 4 Heaviest Build 150 | 11 16 25 108 118 111 111 111 111 125 144 144 140 140 140 145 150 148 148 148 Greatest Support 143 | 40 40 40 60 112 112 112 112 112 112 28 28 28 28 50 28 28 44 44 143 Greatest Overweight (x) 8 | . . . 1 1 . . . . 4 5 5 4 4 5 5 5 5 3 8 Average Overweight (x) 2 | . . . . . . . . . 1 4 4 4 4 3 4 5 3 2 . Largest Inventory Capacity 25 | 8 10 10 25 25 25 25 25 25 25 25 25 25 25 25 25 25 25 25 25 Average Capacity 22 | 7 9 10 21 25 25 25 25 25 25 25 25 25 25 25 25 25 25 25 24 Most Carried 25 | 2 5 10 25 25 25 25 25 22 25 25 25 25 25 23 25 25 25 25 23 Average Carried 21 | . 4 7 19 24 25 25 24 22 22 22 24 24 24 21 24 24 23 24 17 Final Capacity 25 | 8 10 10 25 25 25 25 25 25 25 25 25 25 25 25 25 25 25 25 5 Final Carried 25 | 2 5 10 25 25 25 25 23 22 21 25 25 25 20 23 25 25 23 23 5 Class Distribution -------------------- 50% | Scavenger-Executioner 39% | Scavenger-Gunner 3% | Gunner 3% | Mutant Dominant Class ---------------- Mutant | -10/Materials Gunner | -9/Materials Scavenger-Gunner | -8/Materials Scavenger-Gunner | -7/Factory Scavenger-Gunner | -7/Lower Caves Scavenger-Gunner | -7/Data Miner Scavenger-Gunner | -6/Proximity Caves Scavenger-Executioner | -6/Factory Scavenger-Executioner | -6/DSF Scavenger-Executioner | -5/Factory Scavenger-Executioner | -5/Extension Scavenger-Executioner | -5/Cetus Scavenger-Executioner | -5/Archives Scavenger-Executioner | -5/Hub_04(d) Scavenger-Executioner | -4/Factory Scavenger-Executioner | -4/Upper Caves Scavenger-Executioner | -4/Upper Caves Scavenger-Executioner | -4/Zhirov Scavenger-Executioner | -3/Proximity Caves Resources | -11 -10 -9 -8 -7 -7 -7 -6 -6 -6 -5 -5 -5 -5 -5 -4 -4 -4 -4 -3 ----------- Run | Yrd Mat Mat Mat Fac Low Dat Pro Fac DSF Fac Ext Cet Arc Hub Fac Upp Upp Zhi Pro Matter Collected 8196 | 312 10 340 1333 1369 233 . 180 . 374 170 913 202 . 778 248 699 435 177 423 Remotely 832 | 104 . . . 208 . . . . 127 . 102 . . . . 291 . . . Salvage Created 13516 | 151 . 790 2196 1896 297 . 357 . 1090 196 1592 240 121 910 263 1369 1046 372 630 Parts 678 | 12 . 64 130 93 13 . 19 . 31 12 96 15 7 37 19 55 40 5 30 Haulers Intercepted 11 | . . 2 5 1 . . . . . . . . . 2 . 1 . . . Recyclers Shooed 5 | 1 . 2 . 1 . . . . . . . . . 1 . . . . . Parts Field Recycled . | . . . . . . . . . . . . . . . . . . . . Retrieved Matter . | . . . . . . . . . . . . . . . . . . . . Parts Self-Destructed 152 | . . . . . 13 . 16 . . . . . . . . 53 40 3 27 Prevented . | . . . . . . . . . . . . . . . . . . . . Parts Restored . | . . . . . . . . . . . . . . . . . . . . Kills | -11 -10 -9 -8 -7 -7 -7 -6 -6 -6 -5 -5 -5 -5 -5 -4 -4 -4 -4 -3 ------- Run | Yrd Mat Mat Mat Fac Low Dat Pro Fac DSF Fac Ext Cet Arc Hub Fac Upp Upp Zhi Pro Combat Hostiles Destroyed 174 | . . 17 33 26 5 . 5 . 16 2 17 3 2 7 3 15 12 . 11 Guns 169 | . . 17 33 24 5 . 5 . 13 2 17 3 2 7 3 15 12 . 11 AOE 5 | . . . . 2 . . . . 3 . . . . . . . . . . Classes Destroyed 19 | 2 . 7 3 2 . . 2 . 1 1 1 . . . . . . . . Worker 12 | . . 1 3 5 . . . . . . 2 . . 1 . . . . . Builder 7 | . . . 2 4 . . . . . . 1 . . . . . . . . Tunneler 5 | 3 . 1 1 . . . . . . . . . . . . . . . . Hauler 11 | . . 2 5 1 . . . . . . . . . 2 . 1 . . . Recycler 14 | 1 . 1 3 7 . . . . . . 1 . . 1 . . . . . Operator 3 | . . . . . . . . . . 1 . . . 1 1 . . . . Drone 1 | . . . . . . . 1 . . . . . . . . . . . . Watcher 11 | . . 1 5 2 . . . . . . 1 . . 1 1 . . . . Swarmer 26 | . . 7 7 3 1 . . . . . . . . . . 1 . . 7 Grunt 65 | . . 5 13 13 1 . 2 . 8 . . . 2 4 . 10 5 . 2 Brawler 8 | . . . . 1 2 . . . 1 . . . . 1 . 1 2 . . Duelist 9 | . . 1 1 2 . . 1 . . . . . . . . 1 2 . 1 Sentry 35 | . . 4 8 2 1 . 1 . . 2 10 . . 2 1 2 1 . 1 Specialist 4 | . . . . . . . . . 4 . . . . . . . . . . Hunter 12 | . . . 3 2 . . . . 2 . 3 . . . . . 2 . . Programmer 5 | . . . . 3 . . . . . . . . . . 2 . . . . Heavy 2 | . . . 1 . . . . . 1 . . . . . . . . . . Behemoth 1 | . . . . . . . . . . . 1 . . . . . . . . Cetus Guard 3 | . . . . . . . . . . . . 3 . . . . . . . Samaritan 1 | . . . . . . . 1 . . . . . . . . . . . . Thug 1 | . . . . . . . . . . . 1 . . . . . . . . Butcher 2 | . . . . . . . . . . . 2 . . . . . . . . Best Kill Streak 11 | 4 . 7 5 9 5 . 4 . 11 1 6 2 2 4 2 8 7 . 7 Combat Bots Only 11 | . . 5 4 7 5 . 4 . 11 1 6 2 2 3 2 7 7 . 7 Max Kills in Single Turn 4 | 1 . 1 4 3 1 . 2 . 2 1 2 1 1 2 1 3 2 . 3 Gunslinging 3 | . . . 3 1 . . 1 . 1 . . . . 1 . 2 1 . 2 Exploded 2 | . . . . 2 . . . . 1 . . . . . . . . . . Melee . | . . . . . . . . . . . . . . . . . . . . Uniques/NPCs Destroyed . | . . . . . . . . . . . . . . . . . . . . Combat | -11 -10 -9 -8 -7 -7 -7 -6 -6 -6 -5 -5 -5 -5 -5 -4 -4 -4 -4 -3 -------- Run | Yrd Mat Mat Mat Fac Low Dat Pro Fac DSF Fac Ext Cet Arc Hub Fac Upp Upp Zhi Pro Hostile Shots Fired 866 | . . 79 126 124 46 . 64 . 106 4 40 17 . 16 16 74 50 . 104 Missed 272 | . . 23 39 37 20 . 32 . 28 1 14 8 . 5 4 15 16 . 30 Hits 594 | . . 56 87 87 26 . 32 . 78 3 26 9 . 11 12 59 34 . 74 Melee 9 | . . 3 . 2 . . . . . . . . . . . 1 . . 3 Projectile 585 | . . 53 87 85 26 . 32 . 78 3 26 9 . 11 12 58 34 . 71 Critical Strikes 24 | . . . 6 2 . . 1 . . . 5 2 . . 1 3 3 . 1 Damage Taken 11152 | . . 776 1226 1232 199 . 364 . 1557 62 641 176 1028 231 265 1238 664 . 1493 Core 1459 | . . 127 178 158 50 . 37 . 153 . 61 . 345 19 . 147 44 . 140 Absorbed by Shields 282 | . . . . . . . . . . . 137 118 . . . . . . 27 Redirected to Shielding 28 | . . 23 5 . . . . . . . . . . . . . . . . Core Remaining (%) 77 | 100 100 68 67 . . . 65 . 82 . . . . 57 . . . . . Volleys Fired 401 | 12 . 60 95 69 8 . 10 . 25 4 35 8 3 15 8 19 14 3 13 Largest 7 | 2 . 4 4 4 4 . 4 . 6 6 6 6 6 6 7 7 7 7 7 Hottest 320 | 60 . 119 101 107 107 . 107 . 320 289 198 198 198 198 231 239 239 239 239 Shots Fired 1805 | 24 . 220 380 253 30 . 40 . 103 24 194 48 18 90 53 124 100 21 83 Gun 1792 | 24 . 220 380 245 30 . 40 . 99 24 193 48 18 90 53 124 100 21 83 Cannon 8 | . . . . 7 . . . . . . 1 . . . . . . . . Launcher 5 | . . . . 1 . . . . 4 . . . . . . . . . . Special . | . . . . . . . . . . . . . . . . . . . . Kinetic 1657 | 12 . 165 380 245 30 . 40 . 37 18 193 48 18 90 53 124 100 21 83 Thermal 143 | 12 . 55 . 7 . . . . 62 6 1 . . . . . . . . Explosive 5 | . . . . 1 . . . . 4 . . . . . . . . . . Electromagnetic . | . . . . . . . . . . . . . . . . . . . . Robot Hit Streak 26 | 3 . 14 21 17 10 . 11 . 18 16 26 8 3 10 5 10 11 8 8 Robot Miss Streak 6 | 1 . 4 5 2 2 . 2 . 4 1 3 3 5 3 4 3 3 2 6 Penetration Max 2 | . . . 1 1 1 . 1 . 1 . 2 1 1 1 . 1 1 . 1 Secondary Targets 47 | . . 3 10 4 1 . 3 . 5 . . 2 2 2 . 6 3 . 6 Max Gunslinging Chain 3 | . . 1 3 1 1 . 2 . 1 . . 1 1 2 . 3 1 . 2 Shots Hit Robots 1127 | 14 . 125 248 177 24 . 29 . 68 16 120 35 9 50 22 79 56 3 52 Core Hits 550 | 6 . 46 96 79 12 . 14 . 57 10 57 13 7 30 11 42 34 7 29 Critical Kills 25 | . . . 1 2 . . . . 4 1 9 . . . . 2 1 1 4 Critical Parts Destroyed 39 | . . 1 1 4 2 . . . 1 . 14 1 1 2 . 6 3 . 3 Critical Strikes 67 | . . 2 3 6 2 . . . 5 1 23 2 1 2 . 8 4 1 7 Burn 1 | . . 1 . . . . . . . . . . . . . . . . . Destroy 66 | . . 1 3 6 2 . . . 5 1 23 2 1 2 . 8 4 1 7 Melee Attacks . | . . . . . . . . . . . . . . . . . . . . Impact . | . . . . . . . . . . . . . . . . . . . . Slashing . | . . . . . . . . . . . . . . . . . . . . Piercing . | . . . . . . . . . . . . . . . . . . . . Sneak Attacks . | . . . . . . . . . . . . . . . . . . . . Combat Hostiles . | . . . . . . . . . . . . . . . . . . . . Follow-up Attacks . | . . . . . . . . . . . . . . . . . . . . Damage Inflicted 24221 | 122 . 1310 3887 3688 450 . 558 . 2210 279 2821 1018 348 1488 688 2356 1601 277 1120 Guns 23028 | 122 . 1310 3818 3466 450 . 558 . 1431 279 2821 1018 348 1488 575 2356 1601 277 1110 Cannons . | . . . . . . . . . . . . . . . . . . . . Explosions 1040 | . . . . 148 . . . . 779 . . . . . 113 . . . . Melee . | . . . . . . . . . . . . . . . . . . . . Ramming 153 | . . . 69 74 . . . . . . . . . . . . . . 10 Kinetic 21251 | 69 . 925 3818 3466 450 . 558 . 259 112 2821 1018 348 1488 575 2356 1601 277 1110 Thermal 1890 | 53 . 385 . . . . . . 1172 167 . . . . 113 . . . . Explosive 927 | . . . . 148 . . . . 779 . . . . . . . . . . Electromagnetic . | . . . . . . . . . . . . . . . . . . . . Impact . | . . . . . . . . . . . . . . . . . . . . Slashing . | . . . . . . . . . . . . . . . . . . . . Piercing . | . . . . . . . . . . . . . . . . . . . . Highest Corruption 3 | . 2 . . 3 3 3 3 . . . . . . . 2 2 2 2 2 Average Corruption 2 | . 2 . . 2 3 3 3 . . . . . . . 1 2 2 2 2 Corruption Purged . | . . . . . . . . . . . . . . . . . . . . Corruption Blocked . | . . . . . . . . . . . . . . . . . . . . Effects 81 | . . . . 22 10 1 10 . . . . . . . 2 12 9 5 10 Message Errors 26 | . . . . 7 4 . 4 . . . . . . . 1 2 4 2 2 Matter Fused 17 | . . . . 7 1 . 2 . . . . . . . . 5 . . 2 Heat Flow Errors 8 | . . . . 1 . 1 . . . . . . . . 1 2 . 1 2 Energy Discharges 6 | . . . . 1 2 . 1 . . . . . . . . 1 . . 1 Parts Rejected 1 | . . . . . . . 1 . . . . . . . . . . . . Parts Fused 3 | . . . . 1 . . . . . . . . . . . . 1 1 . Data Loss (minor) 9 | . . . . 1 1 . 1 . . . . . . . . 2 2 1 1 Data Loss (major) 1 | . . . . . . . 1 . . . . . . . . . . . . Misfires 4 | . . . . 2 . . . . . . . . . . . . 2 . . Alerts 2 | . . . . 1 . . . . . . . . . . . . . . 1 Weapon Failures 4 | . . . . 1 2 . . . . . . . . . . . . . 1 Overload Shots 2 | . . . . 1 . . . . . . 1 . . . . . . . . Overflow Damage 127 | . . 113 . . . . . . 14 . . . . . . . . . . Projectiles . | . . . . . . . . . . . . . . . . . . . . Explosions 127 | . . 113 . . . . . . 14 . . . . . . . . . . Melee . | . . . . . . . . . . . . . . . . . . . . Knockbacks . | . . . . . . . . . . . . . . . . . . . . Impact . | . . . . . . . . . . . . . . . . . . . . Kinetic . | . . . . . . . . . . . . . . . . . . . . Secondary . | . . . . . . . . . . . . . . . . . . . . Self-Inflicted Damage 123 | . . 114 . . . . . . . . . . . . 4 . . . 5 Shots 2 | . . 1 . . . . . . . . . . . . 1 . . . . Rammed 17 | . . . 8 8 . . . . . . . . . . . . . . 1 Targets Rammed 21 | . . . 9 11 . . . . . . . . . . . . . . 1 Kicked . | . . . . . . . . . . . . . . . . . . . . Crushed 4 | . . . 1 3 . . . . . . . . . . . . . . . Highest Temperature 323 | 40 . 246 180 162 15 198 25 . 243 208 178 123 96 164 104 323 103 156 224 Average Temperature 57 | 21 . 67 35 15 7 162 9 . 96 85 59 56 49 52 43 97 38 81 104 Received Heat Transfer 1992 | . . 150 360 399 66 . 165 . 237 9 131 4 . 72 18 276 75 . 30 Effects 5 | . . 2 . . . . . . . . . . . . . 3 . . . Energy Bleed 1 | . . 1 . . . . . . . . . . . . . . . . . Interference 4 | . . 1 . . . . . . . . . . . . . 3 . . . Siege Activations . | . . . . . . . . . . . . . . . . . . . . Martial Activations . | . . . . . . . . . . . . . . . . . . . . Shielding Activations . | . . . . . . . . . . . . . . . . . . . . Robots Disrupted . | . . . . . . . . . . . . . . . . . . . . Combat Hostiles . | . . . . . . . . . . . . . . . . . . . . Robots Corrupted . | . . . . . . . . . . . . . . . . . . . . Combat Hostiles . | . . . . . . . . . . . . . . . . . . . . Parts Fried 1 | . . . . . . . . . . . 1 . . . . . . . . Impact Corruptions . | . . . . . . . . . . . . . . . . . . . . Robots Melted . | . . . . . . . . . . . . . . . . . . . . Combat Hostiles . | . . . . . . . . . . . . . . . . . . . . Parts Melted 11 | . . 1 . . . . . . 8 . 2 . . . . . . . . Heat Transferred 4204 | 125 . 1004 . . . . . . 2650 375 . . . . 50 . . . . Parts Sabotaged . | . . . . . . . . . . . . . . . . . . . . Parts Stolen . | . . . . . . . . . . . . . . . . . . . . Parts Stripped . | . . . . . . . . . . . . . . . . . . . . Power Chain Reactions . | . . . . . . . . . . . . . . . . . . . . Alert | -11 -10 -9 -8 -7 -7 -7 -6 -6 -6 -5 -5 -5 -5 -5 -4 -4 -4 -4 -3 ------- Run | Yrd Mat Mat Mat Fac Low Dat Pro Fac DSF Fac Ext Cet Arc Hub Fac Upp Upp Zhi Pro Maximum Alert Level 2 | . . 1 2 2 . . . 2 2 1 1 1 2 . 1 . . . . Low Security (%) 62 | 100 100 41 56 67 . . . . . 23 86 25 62 100 99 . . . . Level 1 30 | . . 58 29 25 . . . . 53 76 13 74 6 . . . . . . Level 2 7 | . . . 13 6 . . . 100 46 . . . 31 . . . . . . Level 3 . | . . . . . . . . . . . . . . . . . . . . Level 4 . | . . . . . . . . . . . . . . . . . . . . Level 5 . | . . . . . . . . . . . . . . . . . . . . High Security . | . . . . . . . . . . . . . . . . . . . . Max Security . | . . . . . . . . . . . . . . . . . . . . Sterilizations 1 | . . . . . . . . . 1 . . . . . . . . . . Peak Influence 653 | 5 15 286 499 504 . . . 450 653 342 387 306 585 191 201 . . . . Initial 450 | . . . 98 224 . . . 450 308 342 89 216 107 165 81 . . . . Average 194 | 1 . 199 212 211 . . . 447 422 254 128 231 240 120 135 . . . . Influence Increases 6781 | 20 15 629 979 813 100 . 95 450 405 65 922 290 548 296 213 371 275 15 280 Destroy 0b10 Robot/C 3880 | . . 340 660 520 100 . 80 . 320 40 460 160 220 140 60 320 240 . 220 Destroy 0b10 Robot/NC 395 | 20 . 30 95 95 . . 5 . 10 5 55 10 10 30 10 5 . 15 . Destroy Leader 674 | . . 106 200 126 . . 10 . 50 20 46 . . 34 22 10 20 . 30 Allied During Kill 608 | . . . . . . . . . . . 268 110 224 . . 6 . . . Successful Hack 14 | . . . . . . . . . . . 14 . . . . . . . . Disable Machine 240 | . . 45 . 30 . . . . . . 30 . 45 45 45 . . . . Destroy Structure 250 | . . 33 9 12 . . . . 10 . 34 10 34 32 76 . . . . Advance Influence 450 | . . . . . . . . 450 . . . . . . . . . . . Partial Spotted 15 | . . . . 15 . . . . . . . . . . . . . . . Lose Combat Pursuer 255 | . 15 75 15 15 . . . . 15 . 15 . 15 15 . 30 15 . 30 Influence Decreases 6781 | 20 15 396 719 1157 249 . 95 10 192 535 718 409 341 604 286 396 326 33 280 Entered New Map 1793 | . . . 135 269 56 . . . 132 311 94 171 161 310 86 36 14 18 . Time Decay 4074 | 20 15 366 544 568 193 . 75 10 . 214 494 198 60 294 190 320 272 15 226 Lost Part 354 | . . 30 40 20 . . 20 . 60 10 10 . 40 . 10 40 20 . 54 Lost Ally 260 | . . . . . . . . . . . 120 40 80 . . . 20 . . Purge Threat 300 | . . . . 300 . . . . . . . . . . . . . . . Squads Dispatched 23 | . 1 3 6 5 . . . . 2 1 1 . . 2 1 . 1 . . Investigation 2 | . . 1 1 . . . . . . . . . . . . . . . . Extermination 5 | . . . . 3 . . . . . 1 . . . 1 . . . . . Reinforcement 14 | . 1 2 4 2 . . . . 2 . 1 . . 1 1 . . . . Assault 2 | . . . 1 . . . . . . . . . . . . . 1 . . Garrison . | . . . . . . . . . . . . . . . . . . . . Intercept . | . . . . . . . . . . . . . . . . . . . . Searches Triggered . | . . . . . . . . . . . . . . . . . . . . Construction Impeded 1 | . . . . . . . . . . . 1 . . . . . . . . Haulers Reinforced 1 | . . . . 1 . . . . . . . . . . . . . . . Active Scanning Responses . | . . . . . . . . . . . . . . . . . . . . Cargo Convoy Interrupts 1 | . . . . 1 . . . . . . . . . . . . . . . Stealth | -11 -10 -9 -8 -7 -7 -7 -6 -6 -6 -5 -5 -5 -5 -5 -4 -4 -4 -4 -3 --------- Run | Yrd Mat Mat Mat Fac Low Dat Pro Fac DSF Fac Ext Cet Arc Hub Fac Upp Upp Zhi Pro Distress Signals 12 | . 2 2 3 . . . . . . . 1 2 1 . . . . . 1 Communications Jammed 1 | . . . . 1 . . . . . . . . . . . . . . . Distress Signals 1 | . . . . 1 . . . . . . . . . . . . . . . Times Spotted 280 | . 1 31 48 33 5 . 7 . 17 3 29 9 20 12 5 16 15 . 29 Peak Tracking Total 16 | . 2 6 4 5 5 . 4 . 7 1 5 5 16 4 2 8 7 . 9 Tactical Retreats 14 | . 1 3 1 1 . . . . 1 . 1 . 1 1 . 2 1 . 1 Traps | -11 -10 -9 -8 -7 -7 -7 -6 -6 -6 -5 -5 -5 -5 -5 -4 -4 -4 -4 -3 ------- Run | Yrd Mat Mat Mat Fac Low Dat Pro Fac DSF Fac Ext Cet Arc Hub Fac Upp Upp Zhi Pro Traps Triggered 10 | . 1 1 1 . . . . . 1 . 2 . . 4 . . . . . Indirectly . | . . . . . . . . . . . . . . . . . . . . Trap Hack Attempts . | . . . . . . . . . . . . . . . . . . . . Triggered . | . . . . . . . . . . . . . . . . . . . . Disarmed . | . . . . . . . . . . . . . . . . . . . . Reprogrammed . | . . . . . . . . . . . . . . . . . . . . Reused . | . . . . . . . . . . . . . . . . . . . . Traps Extracted . | . . . . . . . . . . . . . . . . . . . . Installed . | . . . . . . . . . . . . . . . . . . . . Triggered . | . . . . . . . . . . . . . . . . . . . . Machines | -11 -10 -9 -8 -7 -7 -7 -6 -6 -6 -5 -5 -5 -5 -5 -4 -4 -4 -4 -3 ---------- Run | Yrd Mat Mat Mat Fac Low Dat Pro Fac DSF Fac Ext Cet Arc Hub Fac Upp Upp Zhi Pro Machines Disabled 20 | . . 3 . 2 . . . . 1 . 3 . 3 3 3 . . 2 . Max in Single Turn 3 | . . 2 . 1 . . . . 1 . 1 . 2 1 3 . . 2 . Garrison Access 2 | . . . 1 . . . . . . . . . . 1 . . . . . Machines Repaired . | . . . . . . . . . . . . . . . . . . . . Machines Dismantled . | . . . . . . . . . . . . . . . . . . . . Machines Sabotaged . | . . . . . . . . . . . . . . . . . . . . Overloaded Fab Kills . | . . . . . . . . . . . . . . . . . . . . Hacking | -11 -10 -9 -8 -7 -7 -7 -6 -6 -6 -5 -5 -5 -5 -5 -4 -4 -4 -4 -3 --------- Run | Yrd Mat Mat Mat Fac Low Dat Pro Fac DSF Fac Ext Cet Arc Hub Fac Upp Upp Zhi Pro Machines Accessed 20 | . . 1 1 3 . . . 1 . 3 5 . 1 1 . . . 4 . Terminals 10 | . . . . 2 . . . 1 . 2 5 . . . . . . . . Fabricators 1 | . . . . 1 . . . . . . . . . . . . . . . Repair Stations . | . . . . . . . . . . . . . . . . . . . . Recycling Units . | . . . . . . . . . . . . . . . . . . . . Scanalyzers 1 | . . 1 . . . . . . . . . . . . . . . . . Garrison Access 3 | . . . 1 . . . . . . 1 . . . 1 . . . . . Total Hacks 69 | . . 2 1 7 . . . 1 . 4 10 . 25 2 . . . 17 . Successful 52 | . . 2 1 2 . . . 1 . . 3 . 25 1 . . . 17 . Failed 17 | . . . . 5 . . . . . 4 7 . . 1 . . . . . Catastrophic 5 | . . . . 2 . . . . . 1 1 . . 1 . . . . . Database Lockouts . | . . . . . . . . . . . . . . . . . . . . Manual 5 | . . . . 4 . . . . . . . 1 . . . . . . . Terminals 20 | . . . . 6 . . . 1 . 3 10 . . . . . . . . Fabricators 1 | . . . . 1 . . . . . . . . . . . . . . . Repair Stations . | . . . . . . . . . . . . . . . . . . . . Recycling Units . | . . . . . . . . . . . . . . . . . . . . Scanalyzers 2 | . . 2 . . . . . . . . . . . . . . . . . Garrison Access 4 | . . . 1 . . . . . . 1 . . . 2 . . . . . Terminal Hacks 48 | . . . . 2 . . . 1 . . 3 . 25 . . . . 17 . Record 30 | . . . . . . . . . . . . . 25 . . . . 5 . Part Schematic 4 | . . . . . . . . . . . . . . . . . . 4 . Robot Analysis 4 | . . . . . . . . . . . . . . . . . . 4 . Prototype ID Bank 4 | . . . . . . . . . . . . . . . . . . 4 . Open Door 3 | . . . . . . . . . . . 3 . . . . . . . . Open DSF 1 | . . . . . . . . 1 . . . . . . . . . . . Unreport Threat 2 | . . . . 2 . . . . . . . . . . . . . . . Fabricator Hacks . | . . . . . . . . . . . . . . . . . . . . Repair Station Hacks . | . . . . . . . . . . . . . . . . . . . . Recycling Unit Hacks . | . . . . . . . . . . . . . . . . . . . . Scanalyzer 2 | . . 2 . . . . . . . . . . . . . . . . . Retrieve Study 2 | . . 2 . . . . . . . . . . . . . . . . . Garrison Access Hacks 2 | . . . 1 . . . . . . . . . . 1 . . . . . Seal Access 2 | . . . 1 . . . . . . . . . . 1 . . . . . Unauthorized Hacks . | . . . . . . . . . . . . . . . . . . . . Terminals . | . . . . . . . . . . . . . . . . . . . . Fabricators . | . . . . . . . . . . . . . . . . . . . . Repair Stations . | . . . . . . . . . . . . . . . . . . . . Recycling Units . | . . . . . . . . . . . . . . . . . . . . Scanalyzers . | . . . . . . . . . . . . . . . . . . . . Garrison Access . | . . . . . . . . . . . . . . . . . . . . Data Cores Recovered 2 | . . . . . . . . . . 1 . . . 1 . . . . . Used . | . . . . . . . . . . . . . . . . . . . . Hacking Detections 11 | . . . . 3 . . . 1 . 3 4 . . . . . . . . Full Trace Events . | . . . . . . . . . . . . . . . . . . . . Feedback Events . | . . . . . . . . . . . . . . . . . . . . Feedback Blocked . | . . . . . . . . . . . . . . . . . . . . Robot Schematics Acquired . | . . . . . . . . . . . . . . . . . . . . Robots Built . | . . . . . . . . . . . . . . . . . . . . Authchips . | . . . . . . . . . . . . . . . . . . . . Time . | . . . . . . . . . . . . . . . . . . . . Total Robot Build Rating . | . . . . . . . . . . . . . . . . . . . . Part Schematics Acquired 4 | . . . . . . . . . . . . . . . . . . 4 . Parts Built . | . . . . . . . . . . . . . . . . . . . . Authchips . | . . . . . . . . . . . . . . . . . . . . Time . | . . . . . . . . . . . . . . . . . . . . Total Part Build Rating . | . . . . . . . . . . . . . . . . . . . . Part Studies Acquired 2 | . . 2 . . . . . . . . . . . . . . . . . Parts Repaired . | . . . . . . . . . . . . . . . . . . . . Time . | . . . . . . . . . . . . . . . . . . . . Parts Recycled . | . . . . . . . . . . . . . . . . . . . . Recycled Matter . | . . . . . . . . . . . . . . . . . . . . Retrieved Matter . | . . . . . . . . . . . . . . . . . . . . Retrieved Components . | . . . . . . . . . . . . . . . . . . . . Parts Scanalyzed . | . . . . . . . . . . . . . . . . . . . . Part Schematics Acquired . | . . . . . . . . . . . . . . . . . . . . Parts Damaged . | . . . . . . . . . . . . . . . . . . . . Bothacking | -11 -10 -9 -8 -7 -7 -7 -6 -6 -6 -5 -5 -5 -5 -5 -4 -4 -4 -4 -3 ------------ Run | Yrd Mat Mat Mat Fac Low Dat Pro Fac DSF Fac Ext Cet Arc Hub Fac Upp Upp Zhi Pro Used RIF Installer . | . . . . . . . . . . . . . . . . . . . . Robots Hacked . | . . . . . . . . . . . . . . . . . . . . Non-combat . | . . . . . . . . . . . . . . . . . . . . Combat . | . . . . . . . . . . . . . . . . . . . . Robot Hacks Applied . | . . . . . . . . . . . . . . . . . . . . Relay Couplers Released . | . . . . . . . . . . . . . . . . . . . . Fabnet Peak Effective % . | . . . . . . . . . . . . . . . . . . . . Robots Rewired 10 | . . . . . . . . . . . 9 . . . . 1 . . . Allies Hacked . | . . . . . . . . . . . . . . . . . . . . Hacks Repelled . | . . . . . . . . . . . . . . . . . . . . Allies | -11 -10 -9 -8 -7 -7 -7 -6 -6 -6 -5 -5 -5 -5 -5 -4 -4 -4 -4 -3 -------- Run | Yrd Mat Mat Mat Fac Low Dat Pro Fac DSF Fac Ext Cet Arc Hub Fac Upp Upp Zhi Pro Total Allies 22 | . . . . . . . . . . . 16 5 . . . 1 . . . Largest Group 16 | . . . . . . . . . . . 16 7 5 . . 1 1 . . Highest-Rated Group 666 | . . . . . . . . . . . 586 666 473 . . 30 30 . . Highest-Rated Ally 159 | . . . . . . . . . . . 159 152 96 . . 30 30 . . Initial Warlord ECA Mod 9 | . . . . . . . . . . 9 9 9 9 9 8 8 8 8 7 Total Orders . | . . . . . . . . . . . . . . . . . . . . Ally Attacks 206 | . . . . . . . . . . . 121 33 50 . . 2 . . . Total Damage 6472 | . . . . . . . . . . . 2663 1144 2620 . . 45 . . . Kills 34 | . . . . . . . . . . . 15 7 11 . . 1 . . . Allies Corrupted 1 | . . . . . . . . . . . 1 . . . . . . . . Allies Melted . | . . . . . . . . . . . . . . . . . . . . Intel | -11 -10 -9 -8 -7 -7 -7 -6 -6 -6 -5 -5 -5 -5 -5 -4 -4 -4 -4 -3 ------- Run | Yrd Mat Mat Mat Fac Low Dat Pro Fac DSF Fac Ext Cet Arc Hub Fac Upp Upp Zhi Pro Active Infowar (turns) 1377 | 14 243 284 . 836 . . . . . . . . . . . . . . . Seismic 541 | 14 243 284 . . . . . . . . . . . . . . . . . Jamming 836 | . . . . 836 . . . . . . . . . . . . . . . Robot Analysis Total 4 | . . . . . . . . . . . . . . . . . . 4 . Derelict Logs Recovered 1 | . . . . . . . 1 . . . . . . . . . . . . Drone Launches . | . . . . . . . . . . . . . . . . . . . . Drone Recoveries . | . . . . . . . . . . . . . . . . . . . . Exploration | -11 -10 -9 -8 -7 -7 -7 -6 -6 -6 -5 -5 -5 -5 -5 -4 -4 -4 -4 -3 ------------- Run | Yrd Mat Mat Mat Fac Low Dat Pro Fac DSF Fac Ext Cet Arc Hub Fac Upp Upp Zhi Pro Turns Passed 12651 | 117 243 906 2102 1715 433 10 371 27 461 457 1314 418 132 648 390 1155 742 352 658 Spaces Moved 5716 | 44 149 363 781 598 254 7 208 16 148 259 628 160 67 324 196 596 372 237 309 Core 9 | 3 . . . . . . . . . . . . . . . . . . 6 Treads 2797 | 41 149 363 781 598 254 7 208 16 107 . . . . 5 . . . . 268 Legs . | . . . . . . . . . . . . . . . . . . . . Wheels 2910 | . . . . . . . . . 41 259 628 160 67 319 196 596 372 237 35 Hover . | . . . . . . . . . . . . . . . . . . . . Flight . | . . . . . . . . . . . . . . . . . . . . Fastest Speed 50 | 50 160 160 160 160 160 160 160 160 145 160 160 160 160 160 160 175 146 129 50 Average Speed 179 | 152 160 160 214 233 160 160 160 160 215 161 163 160 160 163 174 175 147 136 188 Slowest Speed 560 | 160 160 160 240 240 160 160 160 160 240 175 175 160 160 560 175 175 175 146 250 Overloaded Moves . | . . . . . . . . . . . . . . . . . . . . Propulsion Burnouts . | . . . . . . . . . . . . . . . . . . . . Robots Hopped . | . . . . . . . . . . . . . . . . . . . . Potential Cave-ins . | . . . . . . . . . . . . . . . . . . . . Cave-ins Triggered . | . . . . . . . . . . . . . . . . . . . . Teleports 1 | . . . . . . . . . . . . . . . . . . . 1 Exploration Rate (%) 43 | 4 43 41 64 21 48 23 38 1 92 8 65 56 79 42 6 67 63 60 46 Regions Visited 19 Branch Regions 11 Pre-discovered Areas 5 | . . . . . . . 1 . . . . . . . . 1 . 3 . Known Exits Taken 1 | . . . . . . . . 1 . . . . . . . . . . . Unknown Exits Taken 17 | 1 1 1 1 1 1 1 1 . . 1 1 1 1 1 1 1 1 1 . Scrap Searched 8 | . . . . . 1 . 1 . . . . . . . . 4 1 . 1 Spaces Dug 3 | . . . . 2 . . . . . . . . . . 1 . . . . Terrain Destroyed 263 | . . 48 2 12 . . 2 . 11 . 19 1 1 23 63 29 34 . 18 Melee . | . . . . . . . . . . . . . . . . . . . . Projectile 141 | . . . 2 5 . . 2 . . . 16 1 1 23 12 29 33 . 17 AOE 117 | . . 48 . 7 . . . . 11 . . . . . 51 . . . . Terrain Rammed . | . . . . . . . . . . . . . . . . . . . . Walls Destroyed . | . . . . . . . . . . . . . . . . . . . . Machines Disabled . | . . . . . . . . . . . . . . . . . . . . Actions | -11 -10 -9 -8 -7 -7 -7 -6 -6 -6 -5 -5 -5 -5 -5 -4 -4 -4 -4 -3 --------- Run | Yrd Mat Mat Mat Fac Low Dat Pro Fac DSF Fac Ext Cet Arc Hub Fac Upp Upp Zhi Pro Total 7145 | 67 153 567 1017 748 261 6 222 17 215 286 819 301 83 389 218 652 523 257 344 Wait 560 | . 2 124 68 21 . . . . 14 4 9 123 10 33 7 6 134 . 5 Move 5698 | 43 148 362 780 597 253 6 207 16 147 258 627 159 66 323 195 595 371 236 309 Hop . | . . . . . . . . . . . . . . . . . . . . Pick Up 89 | 2 2 6 30 8 . . 1 . 6 7 7 4 . 2 2 7 . 1 4 Fast Attach 44 | 7 . 4 1 2 . . 1 . 3 1 4 . . 13 . . 1 6 1 Attach 45 | . . 2 5 3 . . 3 1 4 3 . . 4 . 3 4 2 2 9 Detach 3 | . . . . . . . . . . . . . . . . . . 2 1 Swap 83 | 3 1 5 12 21 . . . . 10 5 7 1 . 2 3 11 . 1 1 Drop 77 | . . 4 17 16 . . . . 4 4 12 6 . 1 . 6 1 6 . Fire 401 | 12 . 60 95 69 8 . 10 . 25 4 35 8 3 15 8 19 14 3 13 Melee . | . . . . . . . . . . . . . . . . . . . . Ram 1 | . . . . . . . . . . . . . . . . . . . 1 Kick . | . . . . . . . . . . . . . . . . . . . . Crush 20 | . . . 9 11 . . . . . . . . . . . . . . . Escape Stasis 18 | . . . . . . . . . 2 . 16 . . . . . . . . Rewire 106 | . . . . . . . . . . . 102 . . . . 4 . . . Trap . | . . . . . . . . . . . . . . . . . . . . Miscellaneous . | . . . . . . . . . . . . . . . . . . . . Route ------- -11/Scrapyard -10/Materials (discovered 2 exits: *Mat / [*Min]) -9/Materials -8/Materials (discovered 2 exits: *Fac / [*Sto]) -7/Factory -7/Lower Caves -7/Data Miner -6/Proximity Caves -6/Factory -6/DSF -5/Factory (discovered 2 exits: [*Upp] / *Ext) -5/Extension (discovered 2 exits: [*Fac] / *Cet) -5/Cetus (discovered 2 exits: [*Fac] / *Arc) -5/Archives -5/Hub_04(d) -4/Factory -4/Upper Caves -4/Upper Caves (discovered 2 exits: [*Res] / *Zhi) -4/Zhirov -3/Proximity Caves History --------- Turn | Location | Event 22 | -11/Scrapyard | Discovered new exit (range 15) 118 | -11/Scrapyard | Entered Materials 119 | -10/Materials | Met a group of wandering Federalists 228 | -10/Materials | Discovered new exit (range 6) 311 | -10/Materials | Build established: Mutant 332 | -10/Materials | Discovered new exit (range 16) 361 | -10/Materials | Entered another Materials area 361 | -9/Materials | Evolved 2 slots: Weapon x2 1078 | -9/Materials | Discovered new exit (range 16) 1267 | -9/Materials | Entered another Materials area 1267 | -8/Materials | Evolved 2 slots: Propulsion x1, Utility x1 1309 | -8/Materials | Build established: Scavenger-Gunner 2641 | -8/Materials | Discovered new exit (range 7) 3013 | -8/Materials | Discovered new exit (range 16) 3267 | -8/Materials | First assault squad dispatched 3369 | -8/Materials | Entered Factory 3369 | -7/Factory | Evolved 2 slots: Propulsion x1, Utility x1 4339 | -7/Factory | Destroyed 7 combat bots 4896 | -7/Factory | Discovered new exit (range 14) 4962 | -7/Factory | Cargo convoy interrupted 5084 | -7/Factory | Entered Lower Caves 5262 | -7/Lower Caves | Attracted the attention of an 0b10 checkpoint 5381 | -7/Lower Caves | Encountered a Warlord checkpoint 5504 | -7/Lower Caves | A Derelict revealed a hidden shortcut to meet someone special 5517 | -7/Lower Caves | Entered Data Miner 5517 | -7/Data Miner | Discovered new exit (range 6) 5527 | -7/Data Miner | Entered Proximity Caves 5529 | -6/Proximity Caves | Spotter reported a threat 5531 | -6/Proximity Caves | Spotter reported a threat 5655 | -6/Proximity Caves | Spotter reported a threat 5701 | -6/Proximity Caves | Attracted the attention of an 0b10 checkpoint 5784 | -6/Proximity Caves | Lost 3 parts (3w) 5791 | -6/Proximity Caves | Learned location of Extension (-5) 5875 | -6/Proximity Caves | Discovered new exit (range 15) 5898 | -6/Proximity Caves | Entered Factory 5898 | -6/Factory | Evolved 2 slots: Weapon x2 5925 | -6/Factory | Identified exit to DSF 5925 | -6/Factory | Entered DSF 5985 | -6/DSF | Additional patrols routed to DSF 6220 | -6/DSF | Discovered new exit (range 12) 6292 | -6/DSF | Sterilization system engaged 6312 | -6/DSF | Ambient heat levels rising (+10) 6315 | -6/DSF | Lost 5 parts (2n3w) 6327 | -6/DSF | Ambient heat levels rising (+10) 6342 | -6/DSF | Ambient heat levels rising (+10) 6357 | -6/DSF | Ambient heat levels rising (+10) 6364 | -6/DSF | Destroyed 11 combat bots 6372 | -6/DSF | Ambient heat levels rising (+10) 6386 | -6/DSF | Entered Factory 6386 | -5/Factory | Evolved 2 slots: Power x1, Propulsion x1 6473 | -5/Factory | Discovered new exit (range 8) 6650 | -5/Factory | Build established: Scavenger-Executioner 6821 | -5/Factory | Discovered new exit (range 14) 6843 | -5/Factory | Entered Extension 7290 | -5/Extension | Rescued a captive Derelict 7291 | -5/Extension | Rescued a captive Derelict 7612 | -5/Extension | Rescued A7 7632 | -5/Extension | Rescued a captive Derelict 7633 | -5/Extension | Rescued a captive Derelict 7652 | -5/Extension | Rescued a captive Derelict 7657 | -5/Extension | Rescued a captive Derelict 7818 | -5/Extension | Lost 3 allies 7890 | -5/Extension | Spotted B-75 Beast 7893 | -5/Extension | Disrupted transfer network 7900 | -5/Extension | Destroyed B-75 Beast 7918 | -5/Extension | Spotted B-75 Beast 7933 | -5/Extension | Allies destroyed B-75 Beast 7967 | -5/Extension | Lost 6 allies 8129 | -5/Extension | Discovered new exit (range 16) 8131 | -5/Extension | Discovered new exit (range 15) 8157 | -5/Extension | Entered Cetus 8157 | -5/Cetus | Accompanied by 4 allies (A7) 8162 | -5/Cetus | Acquired a Cetus Manufacturing Module code from A7 8177 | -5/Cetus | Spotted Cetus Guard 8177 | -5/Cetus | Spotted Cetus Guard 8177 | -5/Cetus | Allies destroyed Cetus Guard 8178 | -5/Cetus | Spotted Cetus Guard 8179 | -5/Cetus | Allies destroyed Cetus Guard 8179 | -5/Cetus | Spotted Cetus Guard 8188 | -5/Cetus | Destroyed Cetus Guard 8189 | -5/Cetus | Allies destroyed Cetus Guard 8259 | -5/Cetus | Started Cetus Manufacturing Module 8284 | -5/Cetus | Manufactured an Enhanced Grunt 8309 | -5/Cetus | Manufactured an Enhanced Grunt 8334 | -5/Cetus | Manufactured an Enhanced Grunt 8359 | -5/Cetus | Manufactured an Enhanced Grunt 8384 | -5/Cetus | Manufactured an Enhanced Grunt 8418 | -5/Cetus | Discovered new exit (range 16) 8450 | -5/Cetus | Spotted Cetus Guard 8450 | -5/Cetus | Spotted Cetus Guard 8456 | -5/Cetus | Spotted Cetus Guard 8458 | -5/Cetus | Spotted Cetus Guard 8460 | -5/Cetus | Destroyed Cetus Guard 8465 | -5/Cetus | Allies destroyed Cetus Guard 8467 | -5/Cetus | Allies destroyed Cetus Guard 8468 | -5/Cetus | Destroyed Cetus Guard 8480 | -5/Cetus | Discovered new exit (range 16) 8492 | -5/Cetus | Met Revision 17 8575 | -5/Cetus | Entered Archives 8575 | -5/Archives | Accompanied by 6 allies (A7) 8625 | -5/Archives | Met Zhirov 8631 | -5/Archives | Reinforcements dispatched to Archives 8643 | -5/Archives | Read partially decrypted archive contents 8646 | -5/Archives | Discovered new exit (range 16) 8676 | -5/Archives | Reinforcements dispatched to Archives 8678 | -5/Archives | Zhirov warped through subspace 8696 | -5/Archives | Zhirov detonated Archives 8707 | -5/Archives | Entered Hub_04(d) 8727 | -5/Hub_04(d) | Lost 4 parts (3n1w) 8727 | -5/Hub_04(d) | Lost 5 allies 9239 | -5/Hub_04(d) | Discovered new exit (range 9) 9355 | -5/Hub_04(d) | Entered Factory 9355 | -4/Factory | Evolved 2 slots: Propulsion x1, Weapon x1 9430 | -4/Factory | Discovered new exit (range 11) 9745 | -4/Factory | Entered Upper Caves 9755 | -4/Upper Caves | Met a Warlord Commander 9757 | -4/Upper Caves | Warlord Commander delivered Encrypted Comm Array 9779 | -4/Upper Caves | Found Encrypted Comm Array 9904 | -4/Upper Caves | Lost 4 parts (4w) 9910 | -4/Upper Caves | Destroyed 7 combat bots 10316 | -4/Upper Caves | Attracted the attention of an 0b10 outpost 10852 | -4/Upper Caves | Discovered new exit (range 5) 10853 | -4/Upper Caves | Attracted the attention of an 0b10 checkpoint 10900 | -4/Upper Caves | Entered another Upper Caves area 10900 | -4/Upper Caves | Accompanied by 1 ally 10900 | -4/Upper Caves | Discovered new exit (range 13) 11043 | -4/Upper Caves | Spotted B-86 Titan 11371 | -4/Upper Caves | Attracted the attention of an 0b10 outpost 11409 | -4/Upper Caves | Destroyed 7 combat bots 11626 | -4/Upper Caves | Discovered new exit (range 14) 11642 | -4/Upper Caves | Entered Zhirov 11646 | -4/Zhirov | Discovered new exit (range 3) 11694 | -4/Zhirov | Learned location of Quarantine (-2) 11694 | -4/Zhirov | Learned location of Testing (-3) 11694 | -4/Zhirov | Learned location of Command (-1) 11729 | -4/Zhirov | Found Alien Artifact 11729 | -4/Zhirov | Identified Integrated Dissipator 11729 | -4/Zhirov | Installed Integrated Dissipator, increased core heat dissipation (+20) 11746 | -4/Zhirov | Found Alien Artifact 11994 | -4/Zhirov | Entered Proximity Caves 12082 | -3/Proximity Caves | Spotter reported a threat 12093 | -3/Proximity Caves | Destroyed 7 combat bots 12095 | -3/Proximity Caves | Lost 7 parts (3n4w) 12135 | -3/Proximity Caves | Spotter reported a threat 12253 | -3/Proximity Caves | Spotter reported a threat 12296 | -3/Proximity Caves | Spotter reported a threat 12554 | -3/Proximity Caves | Spotter reported a threat 12591 | -3/Proximity Caves | Attracted the attention of an 0b10 outpost 12607 | -3/Proximity Caves | Spotter reported a threat 12639 | -3/Proximity Caves | Identified Transdimensional Reconstructor 12639 | -3/Proximity Caves | Warped through subspace 12639 | -3/Proximity Caves | Spotted B-86 Titan 12648 | -3/Proximity Caves | Released all parts (13) 12652 | -3/Proximity Caves | Self-destructed Last Messages --------------- 12646_ Hvy. Assault Rifle+ destroyed. 12648_ Penetrated by Slug. 12648_ KE Penetrator destroyed. 12648_ Released Hvy. Machine Gun. 12648_ Released Centrium Heavy Treads. 12648_ Released Imp. Treads. 12648_ Released Lgt. Treads. 12648_ Released Hyp. Gauss Rifle. 12648_ Released Centrium Wheel. 12648_ Released Huge Storage Unit. 12648_ Released Imp. Salvage Targeting Computer. 12648_ Released Core Analyzer. 12648_ Released Rnf. Deuterium Engine. 12648_ Released Lgt. Antimatter Reactor. 12648_ Released Railgun. 12648_ Released Imp. Force Field. 12649_ Extracted 25 matter. 12651_ Penetrated by Slug. 12651_ Slug penetrates Wall. 12651_ Slammed into B-86 Titan. Map ----- +----------------------------------------------------+ | ?????????????????????????????????????????????????? | | ?????????????????????????????????????????????????? | | ?????????????????????????????????????????????????? | | ?????????????????????????????????????????????????? | | ?????????????????????????????????????????????????? | | ?????????????????????????????????????????????????? | | ?????????????????????????????????????????????????? | | ?????????????????????????????????????????????????? | | ?????????????????????????????????????????????????? | | ?????????????????????????????????????????????????? | | ?????????????????????????????????????????????????? | | ????????????????????????????????????????????????#? | | ???????????????????????????????????????????????? ? | | ???????????????????????????????????????????????? | | ???????????????????????????????????????????????? | | ???????????????????????????????????????????????? | | ????????? ????????????????????????????????????# | | ?????????? #??????????????????????? ???????????# | | ?????????? ???????????????????? ???????????# | | ??????????? ??????????????????? ?????????# | | ???????????? ???????????????? ???????### | | ????????????# ??????????????? #??????# | | ????????????# ????????????? #??????# | | ????????????# ???????????? #?????# | | ????????????# ??????#### #???????## | | ?????????????# ????### @BB #???????## | | ????????????##? ??## # BB ####????## | | ????????????# #*###=!; ### ### ##### | | ????????????# ]!!=[=!s* #??? ### ## | | ????????????# !![=s!!! #?? | | ????????# *##########?????? | | ????##### ???????????????????#### | | ???## ?# ???????????????????????# | | ??## ?## ??????????????????####### ### | | ?## #??#####???????????????????# ##?# | | ?# #####??????????????????????# ##### #??### | | ?# #???????????#####????????????# #???#" | | ?# #???????????# ####?????????# #??## | | ## ##?????????## ???#?????# #??# | | # #####????## #????? ??##?# #??# | | ###### #??# ### ##### # | | % #????? ## ###### | | ## ## #??????# # # # ##?? | | ######## ## ##??????# ### #?? | | ##??????##### #"#????## #?# ## #?? | | #???????????## ### #"#??## #?# ## ##? | | ####?????????# ### #"### #?## ## #? | | ##??##????# #??#### ##? | | ### #????# ## #?????## ##?? | | #????### ######### ##?????# #??? | +----------------------------------------------------+ Best States ------------- Heat Dissipation 94 Coolant Potential 100 Energy Generation 32 Energy Capacity 505 Matter Stores 300 Matter Capacity 300 Sight Range 16 Terrain Scan Density 10 Jamming Range 12 Armor Coverage 225 Weapon Shielding 33 Evasion (%) 50 Targeting Accuracy 6 Core Analysis 6 Recoil Reduction 5 Matter Filtering 50 Salvage Targeting 2 Item Schematics ----------------- Exp. Heat Sink | -4/Zhirov | Free Assault Drone Bay | -4/Zhirov | Free Exp. Optical Array | -4/Zhirov | Free Imp. Arc Thrower | -4/Zhirov | Free Robot Schematics ------------------ None Fabricated ------------ Nothing Repaired ---------- Nothing Studied --------- Lgt. Assault Rifle | -9/Materials | Hacked Hvy. Assault Rifle | -9/Materials | Hacked Alien Tech Used ----------------- Integrated Dissipator Transdimensional Reconstructor Achievements -------------- None Challenges ------------ None Game ------ Seed MultitargetingDrainedTether Manual? 0 Play Time 01:23:18 Cumulative 262.3 hours Start 2025.12.11 @ 18:07:04 End 2025.12.14 @ 20:23:13 Sessions 6 Manual Loads 0 Difficulty Rogue Special Mode None Game No. 149 Rogue 149 Adventurer 0 Explorer 0 Win Type - Total 32 Types 14/1/11/1/0/1/2/1/0/1 Lore% 84 Gallery% 73 Achievement% 60 Wizard Run 0 Options --------- Layout 1 ASCII 0 Keyboard 0 Movement Arrows Keybinds 0 Fullscreen 2 Font 24/Tamsyn Map View 50x35 Zoom Use 0% Tactical HUD 1 Map Filters NONE Filters NONE Steam 1 RUN: f2528bcb-618f-4812-890d-3dee927384a5